bitfinex/quotes_ETHUSD_20241108
["timestamp","ask_amount","ask_price","bid_price","bid_amount"]
[1731088277695,0.1370481,2916.9,2916.6,0.55]
[1731088277880,0.1370481,2916.9,2916.8,0.55]
[1731088278281,0.1370481,2916.9,2916.6,0.55]
[1731088279041,0.1370481,2916.9,2916.5,0.38486169]
[1731088279331,0.1370481,2916.9,2916.6,0.0685532]
[1731088279704,0.1370481,2916.9,2916.2,0.55]
[1731088279893,0.1370481,2916.9,2916.4,0.55]
[1731088280092,0.1370481,2916.9,2916.6,0.55]
[1731088280433,0.1370481,2916.9,2916.8,0.55]
[1731088280615,0.1370481,2916.9,2916.7,0.0685505]
[1731088280801,0.1370481,2916.9,2916.8,0.06855616]
[1731088281005,0.1370481,2916.9,2916.6,0.55]
[1731088281332,0.1370481,2916.9,2916.7,0.06855606]
[1731088281692,10.0,2918.5,2917.0,0.01]
[1731088281833,10.0,2918.5,2917.1,0.55]
[1731088282695,10.0,2918.5,2917.3,0.55]
[1731088283319,10.7851,2918.5,2917.0,0.357]
[1731088283521,11.86361,2918.5,2917.1,0.55]
[1731088283822,11.86361,2918.5,2917.0,0.357]
[1731088284000,11.86361,2918.5,2917.1,0.55]
[1731088284201,3.0,2918.4,2917.1,0.55]
[1731088284898,3.0,2918.4,2916.2,0.42627384]
[1731088284899,3.7568,2918.1,2916.0,0.01]
[1731088285312,3.7568,2918.1,2916.1,0.01]
[1731088285728,0.7568,2918.1,2916.3,0.01]
[1731088285933,0.7568,2918.1,2916.1,4.06706831]
[1731088286115,0.7568,2918.1,2916.2,0.42138496]
[1731088286336,3.7568,2918.1,2916.3,0.06855373]
[1731088286540,0.7568,2918.1,2916.3,0.07855373]
[1731088286746,0.7568,2918.1,2916.2,3.43138496]
[1731088286747,0.7568,2918.1,2916.2,3.42138496]
[1731088286913,0.7568,2918.1,2916.3,0.01]
[1731088287113,0.7568,2918.1,2916.4,0.3431385]
[1731088288117,0.7568,2918.1,2916.5,0.06855376]
[1731088288740,0.7568,2918.1,2916.4,0.3431385]
[1731088288940,0.7568,2918.1,2916.5,0.55]
[1731088289179,0.7568,2918.1,2916.7,0.55]
[1731088289362,0.48138683,2918.0,2916.8,0.06855378]
[1731088290240,0.48138683,2918.0,2916.3,0.55]
[1731088291960,0.48138683,2918.0,2916.2,3.42138496]
[1731088291961,4.05706831,2917.8,2916.2,0.42138496]
[1731088292115,3.8078,2917.7,2915.7,0.01]
[1731088292321,0.8078,2917.6,2915.7,0.01]
[1731088292936,0.8078,2917.6,2915.7,0.07856557]
[1731088293141,1.59428683,2917.6,2915.7,0.50713449]
[1731088293336,0.8078,2917.6,2916.0,3.55]
[1731088293541,0.8078,2917.9,2916.4,3.55]
[1731088293770,0.8078,2917.9,2916.7,4.05706831]
[1731088293964,0.8078,2917.9,2916.4,0.55]
[1731088293965,0.8078,2917.9,2916.9,0.55]
[1731088294582,0.7748,2918.6,2917.1,0.55]
[1731088294781,0.7748,2918.4,2916.9,0.55]
[1731088295280,0.7748,2918.4,2917.1,0.55]
[1731088295446,0.7748,2918.4,2916.9,0.55]
[1731088295641,0.7748,2918.4,2917.0,0.36880009]
[1731088295981,0.7748,2918.4,2917.1,0.61853935]
[1731088296151,0.7748,2918.4,2917.1,0.55]
[1731088296888,0.7748,2918.4,2917.3,0.55]
[1731088297260,0.7748,2918.4,2917.1,0.55]
[1731088298149,1.85228,2918.4,2917.1,0.55]
[1731088298486,0.7944,2918.3,2917.0,0.36880009]
[1731088298944,0.7944,2918.3,2916.4,3.0]
[1731088298945,0.7944,2918.3,2916.4,3.01]
[1731088299140,0.7944,2918.3,2916.5,0.06855045]
[1731088299747,0.7944,2918.3,2916.6,0.55]
[1731088299942,0.7944,2918.3,2916.8,0.55]
[1731088300799,0.7944,2918.3,2917.0,0.55]
[1731088300999,2.281588,2918.3,2917.1,0.06854686]
[1731088301205,1.487188,2918.3,2917.1,0.06854686]
[1731088301404,0.7761,2918.2,2917.1,0.06854686]
[1731088301711,0.7761,2918.2,2917.0,0.55]
[1731088302106,0.7761,2918.2,2916.4,3.0]
[1731088302268,1.0024288,2918.1,2916.6,0.55]
[1731088302472,0.7761,2918.1,2916.8,0.55]
[1731088302912,2.89,2918.7,2916.8,0.55]
[1731088302913,1.74238699,2921.3,2917.6,0.01]
[1731088303107,0.1370481,2919.8,2918.6,0.55]
[1731088303465,0.1370481,2919.8,2918.7,1.74950251]
[1731088303708,0.1370481,2919.8,2918.8,0.55]
[1731088304008,0.1370481,2919.8,2918.9,0.61849577]
[1731088304512,0.1370481,2919.8,2918.9,0.57]
[1731088304669,0.1370481,2919.8,2918.9,0.56]
[1731088305012,0.0947283,2919.8,2918.9,0.55]
[1731088305198,0.0947283,2919.8,2919.0,0.55]
[1731088305199,0.8561283,2919.8,2919.0,0.55]
[1731088305537,0.8561283,2919.8,2918.3,3.0]
[1731088306973,0.7598,2920.9,2919.2,5.10311072]
[1731088307171,0.7598,2920.9,2919.4,0.01]
[1731088307386,0.7598,2920.9,2919.4,3.0]
[1731088307575,0.7598,2920.9,2919.5,0.55]
[1731088307997,0.7598,2920.9,2919.4,3.0]
[1731088307998,0.7598,2920.9,2919.4,0.55]
[1731088312470,0.7598,2920.9,2919.4,3.55]
[1731088312679,0.7598,2920.9,2919.6,0.55]
[1731088315551,0.7598,2920.9,2918.8,2.09695291]
[1731088315719,0.7788,2920.0,2918.0,6.16402122]
[1731088315871,0.7788,2920.0,2918.0,4.06706831]
[1731088316071,0.7788,2920.0,2918.1,0.68490478]
[1731088316271,0.7788,2920.0,2918.4,4.05706831]
[1731088317827,0.7788,2920.0,2918.5,3.55]
[1731088318423,0.8301,2921.4,2919.3,3.55]
[1731088318730,0.8301,2921.4,2919.5,0.55]
[1731088319012,0.8301,2921.4,2919.6,4.1255481]
[1731088319225,0.8301,2921.4,2919.7,0.55]
[1731088319575,0.766,2921.3,2919.5,0.55]
[1731088319914,0.766,2921.1,2919.5,0.55]
[1731088320309,0.766,2921.1,2919.7,0.55]
[1731088320491,0.766,2921.1,2919.5,0.55]
[1731088320492,0.766,2921.1,2920.5,4.05706831]
[1731088320680,0.766,2921.1,2920.6,0.61846161]
[1731088320880,0.766,2921.1,2920.7,0.46755299]
[1731088321180,0.766,2921.1,2920.2,3.0]
[1731088321181,0.7639,2921.7,2920.3,0.55]
[1731088322173,0.7639,2921.7,2920.2,0.55]
[1731088322402,0.7639,2921.7,2920.4,0.55]
[1731088322825,0.7639,2921.7,2920.3,0.55]
[1731088323980,0.7639,2921.7,2920.5,4.60706831]
[1731088324178,0.7639,2921.7,2920.6,0.46070683]
[1731088324380,0.7639,2921.7,2920.3,0.55]
[1731088324617,0.7639,2921.7,2920.2,0.55]
[1731088325586,0.7639,2921.7,2920.2,1.13748324]
[1731088325788,0.7639,2921.7,2920.3,0.58792252]
[1731088325989,0.7639,2921.7,2920.3,0.51945515]
[1731088326718,0.7639,2921.7,2920.4,0.55]
[1731088327422,0.7639,2921.7,2920.3,0.51945515]
[1731088327634,0.7639,2921.7,2919.9,0.55]
[1731088328130,0.7639,2921.7,2919.9,1.11823324]
[1731088328602,0.7639,2921.7,2920.0,0.56823324]
[1731088329006,4.05706831,2921.6,2920.0,0.56823324]
[1731088329188,0.8233,2921.4,2919.4,0.76070683]
[1731088329535,0.8233,2921.4,2919.7,4.05706831]
[1731088330192,0.8233,2921.4,2919.8,0.06847761]
[1731088330536,0.8233,2921.4,2919.9,0.55]
[1731088330751,0.8233,2921.4,2920.0,0.06847382]
[1731088331258,0.8233,2921.4,2919.7,4.05706831]
[1731088331452,0.8233,2921.4,2919.8,0.40570683]
[1731088331961,0.8233,2921.4,2919.9,0.06847666]
[1731088332410,0.8233,2921.4,2919.9,0.55]
[1731088333511,0.8233,2921.4,2920.1,4.05706831]
[1731088333717,0.8233,2921.4,2920.2,0.55]
[1731088334018,0.8233,2921.4,2920.4,0.55]
[1731088334510,0.8233,2921.4,2920.5,0.06846288]
[1731088334712,0.8233,2921.4,2920.5,0.06846283]
[1731088334914,0.8233,2921.4,2920.6,0.55]
[1731088335353,0.8233,2921.4,2920.7,0.0684592]
[1731088335717,0.8233,2921.4,2920.6,0.55]
[1731088335913,0.8233,2921.4,2920.7,0.46070683]
[1731088336918,0.8233,2921.4,2920.4,0.55]
[1731088337163,0.8233,2921.4,2920.5,4.05706831]
[1731088337459,0.8233,2921.4,2920.6,0.55]
[1731088338065,0.8233,2921.4,2920.5,4.05706831]
[1731088338265,0.8233,2921.4,2920.3,0.46070683]
[1731088339863,0.8233,2921.4,2920.4,0.55]
[1731088340368,0.8233,2921.4,2920.3,0.46070683]
[1731088340546,0.8233,2921.4,2920.4,0.06846714]
[1731088340729,0.8233,2921.4,2920.4,0.55]
[1731088342025,0.8233,2921.4,2920.2,4.05706831]
[1731088342259,0.8233,2921.4,2920.3,0.40570683]
[1731088342631,0.8233,2921.4,2920.3,0.8512734]
[1731088343449,0.8233,2921.4,2920.4,0.55]
[1731088344637,0.8233,2921.4,2920.6,0.55]
[1731088344947,0.8233,2921.4,2920.7,0.06846047]
[1731088345878,0.8233,2921.4,2920.3,4.6374897]
[1731088346065,0.8233,2921.4,2920.4,0.53220945]
[1731088346634,0.8233,2921.4,2920.4,0.46374897]
[1731088347263,0.8233,2921.4,2920.1,0.55]
[1731088347582,0.8233,2921.4,2920.0,2.09973668]
[1731088347738,0.8233,2921.4,2920.1,0.06847055]
[1731088348171,0.8233,2921.4,2919.9,4.05706831]
[1731088348341,0.8233,2921.4,2920.0,2.09973668]
[1731088348541,0.8233,2921.4,2920.2,2.09973668]
[1731088349241,0.8233,2921.4,2920.3,2.09973668]
[1731088349948,0.8233,2921.4,2920.2,2.09973668]
[1731088350148,0.8233,2921.4,2920.3,0.06846656]
[1731088350639,0.8233,2921.4,2920.3,2.09973668]
[1731088350845,0.8233,2921.4,2920.4,0.20997367]
[1731088353688,0.8233,2921.4,2920.5,0.06846756]
[1731088354066,0.8233,2921.4,2920.4,0.20997367]
[1731088354900,0.8233,2921.4,2920.5,0.06846638]
[1731088355099,0.8233,2921.4,2920.5,0.55]
[1731088355270,0.8233,2921.4,2920.6,0.2875196]
[1731088355656,0.8233,2921.4,2920.7,0.06845864]
[1731088356261,0.8233,2921.4,2920.6,0.2875196]
[1731088356561,0.10640071,2921.8,2921.4,3.55]
[1731088356761,0.10640071,2921.8,2921.7,3.83763921]
[1731088357041,0.10640071,2921.8,2921.7,5.94970081]
[1731088357203,0.10640071,2921.8,2921.7,3.83763921]
[1731088357866,0.10640071,2921.8,2921.7,3.90607737]
[1731088358090,0.10640071,2921.8,2921.7,3.83763921]
[1731088358406,0.10640071,2921.8,2921.7,3.950967]
[1731088358611,0.10640071,2921.8,2921.7,4.500967]
[1731088359370,0.10640071,2921.8,2921.7,1.21332779]
[1731088359612,0.10640071,2921.8,2921.7,0.66332779]
[1731088359756,0.87960071,2921.8,2921.7,0.66332779]
[1731088359960,0.10640071,2921.8,2921.2,4.5746412]
[1731088360187,0.10640071,2921.8,2921.3,0.55]
[1731088360831,0.10640071,2921.8,2921.7,0.55]
[1731088360985,0.10640071,2921.8,2921.7,1.0091749]
[1731088361718,0.10640071,2921.8,2921.7,1.07760618]
[1731088362077,0.10640071,2921.8,2921.7,0.52760618]
[1731088362280,0.10640071,2921.8,2921.7,0.4591749]
[1731088363294,0.10640071,2921.8,2921.7,1.0091749]
[1731088364278,0.10640071,2921.8,2921.7,0.4591749]
[1731088365086,0.10640071,2921.8,2921.7,1.0091749]
[1731088365724,0.10640071,2921.8,2921.7,0.4591749]
[1731088365885,0.10640071,2921.8,2921.7,1.0091749]
[1731088366084,0.10640071,2921.8,2921.7,0.4591749]
[1731088366297,0.10640071,2921.8,2921.7,0.52761373]
[1731088366502,0.10640071,2921.8,2921.7,1.0091749]
[1731088367119,0.10640071,2921.8,2921.7,1.48065046]
[1731088367282,0.10640071,2921.8,2921.3,0.55]
[1731088367488,0.10640071,2921.8,2921.2,0.55]
[1731088367829,0.10640071,2921.8,2921.4,0.55]
[1731088367995,0.10640071,2921.8,2921.2,0.47147556]
[1731088367996,0.10640071,2921.8,2921.2,0.55]
[1731088368199,0.10640071,2921.8,2921.4,0.55]
[1731088368950,0.10640071,2921.8,2921.0,4.04174898]
[1731088369113,0.752,2921.7,2921.0,4.04174898]
[1731088369313,0.10640071,2921.8,2921.6,4.04174898]
[1731088369909,0.10640071,2921.8,2921.7,0.06843391]
[1731088370153,0.10640071,2921.8,2921.3,0.06843501]
[1731088370350,0.10640071,2921.8,2921.4,0.4110184]
[1731088371210,0.10640071,2921.8,2921.5,0.61843795]
[1731088371413,0.10640071,2921.8,2921.5,0.55]
[1731088372125,0.10640071,2921.8,2921.4,0.4110184]
[1731088372325,0.7547,2921.7,2920.8,7.04174898]
[1731088372712,0.7547,2921.7,2920.9,0.0684478]
[1731088373115,0.7547,2921.7,2920.8,7.04174898]
[1731088373339,0.7547,2921.7,2920.9,0.06844724]
[1731088373613,0.7547,2921.7,2921.0,0.55]
[1731088374422,0.7547,2921.7,2920.9,0.55]
[1731088374717,0.7547,2921.7,2921.1,0.55]
[1731088374937,0.7547,2921.7,2921.0,0.7591749]
[1731088375141,0.7547,2921.7,2921.1,0.0684491]
[1731088375732,0.7547,2921.7,2921.1,0.06844797]
[1731088377165,0.7547,2921.7,2920.5,0.35681988]
[1731088377342,0.7547,2921.7,2920.6,0.06846197]
[1731088377557,0.7547,2921.7,2919.9,4.41080787]
[1731088377558,0.7547,2921.7,2920.3,0.35691799]
[1731088377721,0.7547,2921.7,2920.4,0.06846198]
[1731088377915,0.7547,2921.7,2920.3,0.35691799]
[1731088378122,0.7547,2921.7,2920.4,0.06846198]
[1731088378379,0.7547,2921.7,2920.4,0.06846387]
[1731088379326,0.7547,2921.7,2920.1,0.06846811]
[1731088379766,0.772,2921.6,2920.2,0.55]
[1731088380077,0.772,2921.6,2920.4,0.55]
[1731088380243,0.772,2921.6,2920.5,0.06846106]
[1731088380726,0.772,2921.6,2920.6,0.55]
[1731088380935,0.77053977,2921.6,2920.7,0.06845594]
[1731088382164,0.77053977,2921.6,2920.6,0.55]
[1731088382372,0.77053977,2921.6,2920.8,0.06845505]
[1731088383069,0.77053977,2921.6,2920.6,0.55]
[1731088383379,0.77053977,2921.6,2920.1,0.55]
[1731088383686,3.2877402,2921.8,2920.2,0.06845886]
[1731088383972,0.32877402,2921.8,2920.3,0.55]
[1731088384188,3.2877402,2922.1,2920.3,0.55]
[1731088384471,3.0,2922.4,2920.2,3.2877402]
[1731088384472,3.0,2922.3,2920.5,1.3032]
[1731088384672,0.1370481,2922.7,2920.8,3.2877402]
[1731088384875,0.1370481,2922.7,2920.9,0.93377402]
[1731088385177,0.1370481,2922.7,2921.1,0.55]
[1731088385362,0.1370481,2922.7,2921.2,0.06844205]
[1731088386136,0.1370481,2922.7,2921.3,0.55]
[1731088386340,0.1370481,2922.7,2921.4,0.06843831]
[1731088386672,0.7753,2922.6,2921.4,0.06843831]
[1731088386874,0.7753,2922.6,2920.9,3.38377402]
[1731088386875,0.8292,2922.5,2921.0,0.55]
[1731088387170,0.8292,2922.5,2920.7,0.7645]
[1731088387315,0.8292,2922.4,2920.8,0.14016585]
[1731088387482,0.8292,2922.4,2920.9,0.06845008]
[1731088388484,0.8292,2922.4,2921.0,0.55]
[1731088388800,3.02,2923.0,2921.0,0.55]
[1731088388801,1.78402919,2923.6,2923.3,0.7642]
[1731088389031,0.53523965,2924.7,2923.5,3.2877402]
[1731088389323,3.2877402,2925.4,2923.6,1.90049726]
[1731088389538,3.2877402,2925.4,2923.8,0.55]
[1731088389678,0.7106,2924.9,2924.0,0.5]
[1731088389878,0.7106,2924.9,2924.0,0.3183762]
[1731088390110,0.7106,2924.9,2924.1,0.06837619]
[1731088390280,0.7106,2924.9,2923.7,0.06837622]
[1731088390477,0.7106,2924.9,2923.6,0.7642]
[1731088390890,0.7106,2924.9,2923.7,0.06837961]
[1731088391095,3.2877402,2924.8,2923.6,0.7642]
[1731088391323,1.11043402,2924.9,2923.6,0.7642]
[1731088391529,0.7106,2924.9,2923.6,0.7642]
[1731088392137,0.7106,2924.9,2923.7,0.55]
[1731088392808,0.7106,2924.9,2923.8,0.06838014]
[1731088393806,0.7106,2924.9,2923.7,0.55]
[1731088394331,0.7106,2924.9,2923.8,0.06837827]
[1731088396627,0.7106,2924.9,2923.9,0.55]
[1731088396799,0.7106,2924.9,2924.0,0.06837612]
[1731088397148,0.69337627,2925.3,2924.0,0.06837612]
[1731088397360,0.625,2925.3,2924.1,1.3458]
[1731088397510,0.625,2925.3,2924.2,0.53838565]
[1731088398002,0.7527,2925.2,2924.3,0.06836917]
[1731088398198,0.06837627,2925.1,2923.7,0.755]
[1731088398446,0.82107627,2925.2,2923.7,0.755]
[1731088398648,0.82107627,2925.2,2923.8,0.06837849]
[1731088400623,0.82107627,2925.2,2923.7,0.755]
[1731088401426,0.82107627,2925.2,2923.8,0.06838057]
[1731088401847,0.82107627,2925.2,2923.7,0.755]
[1731088402571,0.82107627,2925.2,2923.8,0.06838054]
[1731088402750,0.82107627,2925.2,2923.7,0.755]
[1731088403463,0.82107627,2925.2,2923.8,0.06838052]
[1731088404224,0.7527,2925.2,2923.8,0.06838052]
[1731088405320,0.7527,2925.2,2923.8,0.55]
[1731088407521,0.7527,2925.2,2924.0,0.55]
[1731088407960,0.7527,2925.2,2923.8,0.55]
[1731088408174,0.7527,2925.2,2923.9,0.0683735]
[1731088408336,0.7527,2925.2,2923.7,0.755]
[1731088408665,0.82107627,2925.2,2923.7,0.755]
[1731088409254,1.30111328,2925.2,2923.8,0.61838053]
[1731088411671,0.7527,2925.2,2924.0,0.55]
[1731088411834,0.625,2925.3,2924.2,0.55]
[1731088412156,0.625,2925.3,2924.3,0.06836937]
[1731088412832,0.625,2925.3,2924.4,0.06836945]
[1731088413057,0.625,2925.3,2924.2,0.55]
[1731088413656,0.625,2925.3,2924.3,0.06836947]
[1731088413993,0.625,2925.3,2924.2,0.55]
[1731088414762,0.625,2925.3,2924.1,0.8224]
[1731088414763,0.06837627,2925.2,2924.1,0.8224]
[1731088414983,0.39730057,2925.1,2924.1,0.8224]
[1731088415284,0.39730057,2925.1,2924.2,0.06837613]
[1731088415486,0.625,2925.3,2924.2,0.06837613]
[1731088415781,0.06837627,2925.2,2924.1,0.8224]
[1731088416138,0.625,2925.3,2924.2,0.06837523]
[1731088418352,0.625,2925.3,2924.1,0.8224]
[1731088418353,0.89947627,2925.2,2924.1,0.8224]
[1731088418558,0.48041057,2925.1,2924.1,0.8224]
[1731088418758,0.06837627,2925.0,2924.2,0.06838102]
[1731088419966,0.06837627,2925.0,2924.1,0.8224]
[1731088420492,0.7518,2924.6,2923.8,0.7889]
[1731088420669,0.40314295,2924.5,2923.8,0.7889]
[1731088421133,0.40314295,2924.5,2923.9,0.06839165]
[1731088421340,0.7518,2925.0,2923.9,0.06839165]
[1731088421586,0.7518,2925.0,2923.8,0.7889]
[1731088421752,0.625,2925.3,2924.0,0.8177]
[1731088421948,0.06837627,2925.2,2923.7,0.8177]
[1731088422363,0.06837627,2925.2,2923.8,0.55]
[1731088422781,0.06837627,2925.2,2923.9,0.8035]
[1731088423539,0.8208,2925.1,2923.9,0.8035]
[1731088424078,0.69337627,2925.3,2923.9,0.8035]
[1731088424377,0.06837627,2925.3,2924.1,0.8035]
[1731088424585,0.06837627,2925.3,2924.3,0.8035]
[1731088424878,0.06837627,2925.4,2924.3,0.8035]
[1731088432394,3.06837627,2925.4,2924.3,0.8035]
[1731088433154,3.06837627,2925.4,2924.4,0.06838085]
[1731088433387,3.27962947,2925.2,2924.3,0.8035]
[1731088433600,0.06837627,2925.1,2924.3,0.8035]
[1731088433803,0.06837627,2925.1,2924.4,0.06838087]
[1731088434265,0.06837627,2925.1,2924.3,0.8035]
[1731088434466,0.06837627,2925.2,2924.3,0.8035]
[1731088435571,0.06837627,2925.2,2924.4,0.06838089]
[1731088436174,0.06837627,2925.2,2924.3,0.8035]
[1731088436375,0.06837627,2925.2,2924.4,0.06838091]
[1731088436603,0.44690195,2925.2,2924.4,0.06838091]
[1731088437098,0.44690195,2925.2,2924.3,0.8035]
[1731088437273,0.44690195,2925.2,2924.4,0.06838092]
[1731088438102,3.72653142,2925.2,2924.3,0.8035]
[1731088438406,0.8164,2925.0,2924.3,0.8035]
[1731088438560,0.06837627,2924.9,2923.3,0.8224]
[1731088438991,3.7727,2925.3,2923.4,0.89078731]
[1731088439300,0.06837627,2925.2,2923.4,0.89078731]
[1731088440707,0.06837627,2925.2,2923.6,0.7523]
[1731088441001,3.84107627,2925.3,2923.8,0.7523]
[1731088441200,0.70523295,2925.2,2923.8,0.7523]
[1731088441397,0.70523295,2925.2,2923.9,0.06837796]
[1731088441606,0.06837627,2925.3,2923.9,0.82067796]
[1731088441765,0.06837627,2925.3,2923.9,0.7523]
[1731088445486,3.7843,2925.0,2923.9,0.7523]
[1731088445819,0.06837627,2924.9,2924.0,0.06838493]
[1731088446105,0.06837627,2925.2,2924.1,0.8061]
[1731088446307,0.06837627,2925.3,2924.2,0.87448471]
[1731088446513,3.20542437,2925.6,2924.2,0.87448471]
[1731088446712,0.73167538,2925.5,2924.2,0.87448471]
[1731088446883,0.06837627,2925.4,2924.2,0.87448471]
[1731088447210,0.06837627,2925.4,2924.2,0.8061]
[1731088447786,0.1370481,2925.6,2924.9,3.27962947]
[1731088447986,0.1370481,2925.6,2925.1,0.7655]
[1731088448192,0.1370481,2925.6,2925.2,0.7655]
[1731088449014,0.1370481,2925.6,2925.3,0.06835443]
[1731088449220,0.1370481,2925.6,2925.2,0.7655]
[1731088452009,0.1370481,2925.6,2924.4,0.7654]
[1731088452211,0.1370481,2925.6,2924.6,0.7654]
[1731088456191,0.1370481,2925.6,2924.7,0.86506595]
[1731088456714,0.1370481,2925.6,2924.7,0.7967]
[1731088457402,0.1370481,2925.6,2924.8,0.06836785]
[1731088458298,0.1370481,2925.6,2924.7,0.7967]
[1731088459897,0.1370481,2925.6,2924.8,0.06836796]
[1731088460093,0.1370481,2925.6,2924.7,0.7967]
[1731088460293,0.1370481,2925.6,2924.8,0.06836797]
[1731088460495,0.1370481,2925.6,2924.9,0.8052]
[1731088460705,0.1370481,2925.6,2925.1,0.7902]
[1731088461385,0.1370481,2925.6,2925.2,0.0683615]
[1731088462209,0.1370481,2925.6,2925.1,0.7902]
[1731088468227,0.1370481,2925.6,2924.1,0.8116]
[1731088468430,0.7654,2925.5,2924.1,0.8116]
[1731088468642,0.06837627,2925.4,2924.1,0.8116]
[1731088469149,0.06837627,2925.4,2924.2,0.06837709]
[1731088469309,0.83377627,2925.5,2924.3,0.8116]
[1731088469503,0.83377627,2925.5,2924.5,0.8116]
[1731088471739,3.27962947,2925.4,2924.5,0.8116]
[1731088471903,0.06837627,2925.3,2923.9,0.803]
[1731088472107,0.79,2925.2,2923.9,0.803]
[1731088472307,0.4542139,2925.1,2923.9,0.803]
[1731088473608,3.73384337,2925.1,2923.9,0.803]
[1731088473851,0.7584,2925.0,2923.9,0.803]
[1731088474149,0.7584,2925.0,2924.0,0.06839216]
[1731088474150,0.06837627,2924.9,2924.0,0.06839216]
[1731088474452,0.06837627,2924.9,2923.9,0.803]
[1731088474753,0.51760061,2924.9,2923.9,0.803]
[1731088476949,0.51760061,2924.9,2923.6,0.7507]
[1731088476950,0.8159,2924.8,2923.6,0.7507]
[1731088477243,0.06837627,2924.7,2923.7,0.0683919]
[1731088478611,0.06837627,2924.7,2923.6,0.7507]
[1731088481055,0.06837627,2924.7,2923.6,1.15373295]
[1731088481442,0.791,2924.6,2923.6,1.15373295]
[1731088481756,0.06837627,2924.7,2923.2,0.8224]
[1731088481757,3.34800574,2924.5,2923.2,0.8224]
[1731088481924,0.7652,2924.4,2923.2,0.8224]
[1731088482112,0.7652,2924.2,2923.2,0.8224]
[1731088482324,0.06837627,2924.1,2923.2,0.8224]
[1731088482627,0.47969684,2924.1,2923.2,0.8224]
[1731088482828,0.06837627,2924.1,2923.2,0.8224]
[1731088483146,0.06837627,2924.1,2922.5,0.8224]
[1731088483350,0.7652,2924.0,2922.5,0.8224]
[1731088483645,0.7652,2924.0,2922.6,0.06841234]
[1731088483646,0.06837627,2923.9,2922.6,0.06841234]
[1731088484846,0.06837627,2923.9,2922.5,0.8224]
[1731088485439,0.7652,2924.0,2922.6,0.06841236]
[1731088485637,0.06837627,2923.9,2922.6,0.06841236]
[1731088486037,0.06837627,2923.9,2922.5,0.8224]
[1731088486234,0.7652,2923.8,2922.5,0.8224]
[1731088486445,0.06837627,2923.7,2922.5,0.8224]
[1731088486739,0.7749,2923.6,2922.6,0.06841406]
[1731088487052,0.7749,2923.6,2922.6,0.06841402]
[1731088488457,0.04158598,2922.6,2922.1,0.35668157]
[1731088488656,0.7538,2922.5,2922.0,0.35700484]
[1731088488897,0.7538,2922.5,2921.9,0.7704]
[1731088489071,0.04158598,2922.6,2922.0,0.06843376]
[1731088489499,0.04158598,2922.6,2921.9,0.7704]
[1731088489802,0.04158598,2922.6,2922.0,0.06843092]
[1731088491219,0.04158598,2922.6,2921.9,0.7704]
[1731088492598,0.04158598,2922.6,2922.0,0.06842732]
[1731088492896,0.04158598,2922.6,2921.9,0.7704]
[1731088493595,0.04158598,2922.6,2922.0,0.61842413]
[1731088493968,0.04158598,2922.6,2922.0,0.55]
[1731088494598,0.04158598,2922.6,2922.3,0.55]
[1731088494900,0.04158598,2922.6,2922.5,0.55]
[1731088495467,0.04158598,2922.6,2922.5,0.781]
[1731088497468,0.04158598,2922.6,2921.1,3.0]
[1731088497469,0.04158598,2922.6,2921.9,0.06841331]
[1731088497666,0.04158598,2922.6,2922.0,0.7689]
[1731088497887,0.04158598,2922.6,2922.1,0.06842449]
[1731088498608,0.04158598,2922.6,2922.0,0.7689]
[1731088499073,0.04158598,2922.6,2922.1,0.06842448]
[1731088499404,0.04158598,2922.6,2921.3,0.7802]
[1731088499603,0.04158598,2922.6,2921.5,0.7802]
[1731088499765,0.04158598,2922.6,2921.7,0.8015]
[1731088500009,0.04158598,2922.6,2921.8,0.06842612]
[1731088500387,0.04158598,2922.6,2921.7,0.8015]
[1731088500567,0.04158598,2922.6,2921.8,0.0684261]
[1731088500788,0.04158598,2922.6,2921.8,0.06842619]
[1731088500994,0.04158598,2922.6,2921.9,0.55]
[1731088501310,0.04158598,2922.6,2922.1,0.8224]
[1731088501480,0.04158598,2922.6,2922.2,0.06842196]
[1731088502073,0.04158598,2922.6,2922.1,0.8224]
[1731088503986,0.04158598,2922.6,2921.9,0.55]
[1731088504187,0.04158598,2922.6,2921.8,0.8074]
[1731088504385,0.7697,2922.5,2921.3,0.8005]
[1731088504833,0.7697,2922.5,2921.4,0.06843391]
[1731088504991,0.7697,2922.5,2921.3,0.8005]
[1731088505195,0.7697,2922.5,2921.4,0.0684337]
[1731088505490,0.7697,2922.5,2921.3,0.8005]
[1731088505991,0.7697,2922.5,2921.4,0.55]
[1731088507822,0.7697,2922.5,2921.5,0.06843379]
[1731088508222,0.7697,2922.5,2921.4,0.55]
[1731088509123,0.7697,2922.5,2921.3,0.8005]
[1731088509626,0.7697,2922.5,2921.4,0.06843984]
[1731088509803,0.7697,2922.5,2921.4,0.54296819]
[1731088510598,0.7697,2922.5,2921.5,0.55]
[1731088510850,0.7697,2922.5,2921.8,0.7652]
[1731088511341,0.7697,2922.5,2921.5,0.55]
[1731088511342,0.7697,2922.5,2921.5,1.356]
[1731088511519,0.7697,2922.5,2921.6,0.4356]
[1731088511716,0.7697,2922.5,2921.5,0.806]
[1731088512051,0.7697,2922.5,2921.2,0.806]
[1731088512405,0.7697,2922.5,2921.1,0.35707852]
[1731088512612,0.7538,2922.4,2921.2,0.06844207]
[1731088512835,0.7538,2922.4,2921.1,0.83160687]
[1731088513822,0.7538,2922.4,2921.2,0.55]
[1731088514641,0.7538,2922.4,2921.1,0.35707852]
[1731088515254,0.7538,2922.4,2920.6,0.47452835]
[1731088515255,0.8036,2922.2,2921.2,0.06844566]
[1731088515412,0.88917026,2922.1,2920.4,0.8224]
[1731088515764,0.88917026,2922.1,2920.4,1.0650697]
[1731088516457,0.8036,2922.1,2920.4,1.0650697]
[1731088516658,0.8162,2921.9,2920.4,1.0650697]
[1731088516828,0.8162,2921.7,2920.5,0.06845979]
[1731088517016,0.8162,2921.7,2920.4,1.53959805]